[Event "Early-Titled-Tuesday-Blitz-May-07-2024"]
[Site "Chess.com"]
[Date "2024.05.07"]
[Round "4"]
[White "Valeron87"]
[Black "xasid81"]
[Result "0-1"]
[WhiteElo "2448"]
[BlackElo "2640"]
[TimeControl "180+1"]
[EndTime "8:41:29 PDT"]
[Termination "xasid81 won by resignation"]

1. e4 {[%clk 0:03:00.6]} 1... a6 {[%clk 0:02:55.5]} 2. d4 {[%clk 0:03:00.4]}
2... d6 {[%clk 0:02:55.3]} 3. Nf3 {[%clk 0:02:59.1]} 3... g6 {[%clk 0:02:55.4]}
4. h4 {[%clk 0:02:58.6]} 4... h6 {[%clk 0:02:54.6]} 5. a4 {[%clk 0:02:50.4]}
5... Bg7 {[%clk 0:02:51.2]} 6. Nc3 {[%clk 0:02:47.4]} 6... e6 {[%clk 0:02:46.7]}
7. Be3 {[%clk 0:02:47.3]} 7... Ne7 {[%clk 0:02:45.7]} 8. Qd2 {[%clk 0:02:47.2]}
8... b6 {[%clk 0:02:42.7]} 9. O-O-O {[%clk 0:02:44.5]} 9... Bb7 {[%clk
0:02:42.5]} 10. h5 {[%clk 0:02:38.1]} 10... g5 {[%clk 0:02:41.6]} 11. Nh2 {[%clk
0:02:38.7]} 11... f5 {[%clk 0:02:40.2]} 12. f4 {[%clk 0:02:25]} 12... gxf4
{[%clk 0:02:36.1]} 13. Bxf4 {[%clk 0:02:24.4]} 13... fxe4 {[%clk 0:02:36.6]} 14.
Qe2 {[%clk 0:02:04.5]} 14... d5 {[%clk 0:02:27.6]} 15. g4 {[%clk 0:01:52.4]}
15... Nbc6 {[%clk 0:02:24]} 16. g5 {[%clk 0:01:51.7]} 16... hxg5 {[%clk
0:02:19.2]} 17. Bxg5 {[%clk 0:01:51.1]} 17... Qd6 {[%clk 0:02:16.3]} 18. h6
{[%clk 0:01:46.8]} 18... Bxd4 {[%clk 0:01:59.2]} 19. Qh5+ {[%clk 0:01:46.6]}
19... Kd7 {[%clk 0:01:56.5]} 20. Ne2 {[%clk 0:00:41.8]} 20... Be5 {[%clk
0:01:39.9]} 21. Ng4 {[%clk 0:00:41.7]} 21... Raf8 {[%clk 0:01:35.2]} 22. Bh3
{[%clk 0:00:39.9]} 22... Nf5 {[%clk 0:01:19.2]} 23. Nxe5+ {[%clk 0:00:35.9]}
23... Qxe5 {[%clk 0:01:17.5]} 24. Nf4 {[%clk 0:00:35.8]} 24... Nce7 {[%clk
0:00:51.8]} 25. Bxe7 {[%clk 0:00:31]} 25... Qxf4+ {[%clk 0:00:48.8]} 26. Kb1
{[%clk 0:00:30.6]} 26... Kxe7 {[%clk 0:00:46.3]} 27. Rhf1 {[%clk 0:00:27.4]}
27... Qxh6 {[%clk 0:00:40.8]} 0-1

[Event "Early-Titled-Tuesday-Blitz-May-07-2024"]
[Site "Chess.com"]
[Date "2024.05.07"]
[Round "4"]
[White "jinxy2009"]
[Black "Chessdreamer2020"]
[Result "0-1"]
[WhiteElo "2287"]
[BlackElo "2516"]
[TimeControl "180+1"]
[EndTime "8:41:31 PDT"]
[Termination "Chessdreamer2020 won on time"]

1. e4 {[%clk 0:03:00.9]} 1... d6 {[%clk 0:02:58.9]} 2. Nf3 {[%clk 0:02:54.4]}
2... Nf6 {[%clk 0:02:59.1]} 3. Nc3 {[%clk 0:02:54.1]} 3... e5 {[%clk 0:02:59]}
4. d4 {[%clk 0:02:52.9]} 4... Nbd7 {[%clk 0:02:59.3]} 5. Bc4 {[%clk 0:02:50]}
5... Be7 {[%clk 0:02:59.6]} 6. O-O {[%clk 0:02:49.3]} 6... O-O {[%clk
0:02:59.8]} 7. Re1 {[%clk 0:02:48.1]} 7... c6 {[%clk 0:03:00.1]} 8. a4 {[%clk
0:02:48.1]} 8... a5 {[%clk 0:02:58.5]} 9. h3 {[%clk 0:02:45.7]} 9... Nb6 {[%clk
0:02:58.1]} 10. Bb3 {[%clk 0:02:44.5]} 10... Nfd7 {[%clk 0:02:57.9]} 11. Be3
{[%clk 0:02:34.7]} 11... exd4 {[%clk 0:02:57.1]} 12. Nxd4 {[%clk 0:02:24.1]}
12... Nc5 {[%clk 0:02:56.2]} 13. Ba2 {[%clk 0:02:12.1]} 13... Ncxa4 {[%clk
0:02:43.8]} 14. Nf5 {[%clk 0:01:35.5]} 14... Bxf5 {[%clk 0:02:41.4]} 15. exf5
{[%clk 0:01:35.6]} 15... Nxc3 {[%clk 0:02:24.4]} 16. bxc3 {[%clk 0:01:35.2]}
16... Nd7 {[%clk 0:02:24]} 17. Rb1 {[%clk 0:01:30.8]} 17... b5 {[%clk
0:02:21.5]} 18. Qf3 {[%clk 0:01:28.6]} 18... d5 {[%clk 0:02:20.5]} 19. Bf4
{[%clk 0:01:23.3]} 19... Bf6 {[%clk 0:02:17.9]} 20. g4 {[%clk 0:01:19.8]} 20...
h6 {[%clk 0:02:17]} 21. Kg2 {[%clk 0:00:47.5]} 21... Re8 {[%clk 0:02:16.6]} 22.
Rbd1 {[%clk 0:00:41.7]} 22... Ne5 {[%clk 0:01:56.7]} 23. Qg3 {[%clk 0:00:39.3]}
23... Nc4 {[%clk 0:01:46.8]} 24. Bxc4 {[%clk 0:00:38.7]} 24... bxc4 {[%clk
0:01:47.7]} 25. Be5 {[%clk 0:00:22.7]} 25... a4 {[%clk 0:01:41.9]} 26. Bxf6
{[%clk 0:00:15.5]} 26... Qxf6 {[%clk 0:01:42.8]} 27. Qc7 {[%clk 0:00:15.3]}
27... Rec8 {[%clk 0:01:32.1]} 28. Qd7 {[%clk 0:00:08.1]} 28... a3 {[%clk
0:01:27.1]} 29. Re7 {[%clk 0:00:03.7]} 29... a2 {[%clk 0:01:26.7]} 30. Ra1
{[%clk 0:00:03.7]} 30... Rd8 {[%clk 0:01:26.1]} 31. Qc7 {[%clk 0:00:03.5]} 31...
Rdc8 {[%clk 0:01:24.3]} 32. Qd7 {[%clk 0:00:03.5]} 32... Kf8 {[%clk 0:01:24.8]}
33. Rxa2 {[%clk 0:00:03.2]} 33... Qxe7 {[%clk 0:01:22.8]} 34. Rxa8 {[%clk
0:00:02]} 34... Qxd7 {[%clk 0:01:21.7]} 0-1

[Event "Early-Titled-Tuesday-Blitz-May-07-2024"]
[Site "Chess.com"]
[Date "2024.05.07"]
[Round "4"]
[White "TigranMukhutdinov"]
[Black "Silvederione"]
[Result "0-1"]
[WhiteElo "2681"]
[BlackElo "2502"]
[TimeControl "180+1"]
[EndTime "8:41:34 PDT"]
[Termination "Silvederione won by resignation"]

1. e4 {[%clk 0:03:00.9]} 1... c5 {[%clk 0:02:51]} 2. Nf3 {[%clk 0:03:00.4]} 2...
Nc6 {[%clk 0:02:49.9]} 3. Nc3 {[%clk 0:02:58.4]} 3... g6 {[%clk 0:02:49.8]} 4.
d4 {[%clk 0:02:58.4]} 4... cxd4 {[%clk 0:02:50.7]} 5. Nxd4 {[%clk 0:02:59.3]}
5... Bg7 {[%clk 0:02:50.9]} 6. Nb3 {[%clk 0:02:59.8]} 6... Nf6 {[%clk
0:02:46.2]} 7. Be2 {[%clk 0:03:00.3]} 7... O-O {[%clk 0:02:44]} 8. O-O {[%clk
0:03:01]} 8... d6 {[%clk 0:02:42.5]} 9. Re1 {[%clk 0:03:01.6]} 9... a6 {[%clk
0:02:35.9]} 10. Bf1 {[%clk 0:03:01.9]} 10... Bg4 {[%clk 0:02:32.7]} 11. f3
{[%clk 0:02:59.7]} 11... Be6 {[%clk 0:02:33.2]} 12. Be3 {[%clk 0:02:55.4]} 12...
b5 {[%clk 0:02:27.8]} 13. a4 {[%clk 0:02:49.6]} 13... b4 {[%clk 0:02:17.8]} 14.
Nd5 {[%clk 0:02:49.7]} 14... Bxd5 {[%clk 0:02:08.6]} 15. exd5 {[%clk 0:02:49.6]}
15... Na5 {[%clk 0:02:02.4]} 16. Qd2 {[%clk 0:02:34.1]} 16... Nxb3 {[%clk
0:01:49.2]} 17. cxb3 {[%clk 0:02:35]} 17... Qa5 {[%clk 0:01:44.9]} 18. Bc4
{[%clk 0:02:33.3]} 18... Nd7 {[%clk 0:01:36.8]} 19. Bg5 {[%clk 0:02:22.7]} 19...
Ne5 {[%clk 0:01:17.4]} 20. Bxe7 {[%clk 0:02:14.7]} 20... Rfe8 {[%clk 0:01:17.3]}
21. Bg5 {[%clk 0:02:07.5]} 21... Nxc4 {[%clk 0:01:07.1]} 22. bxc4 {[%clk
0:02:03.6]} 22... Qc5+ {[%clk 0:01:06.9]} 23. Kh1 {[%clk 0:01:37.3]} 23... Qxc4
{[%clk 0:01:05.7]} 24. Rac1 {[%clk 0:01:33.8]} 24... Qb3 {[%clk 0:01:02.1]} 25.
Rxe8+ {[%clk 0:00:59.6]} 25... Rxe8 {[%clk 0:01:03]} 26. h4 {[%clk 0:01:00.3]}
26... Qxb2 {[%clk 0:00:51]} 27. Rc2 {[%clk 0:01:00.6]} 27... Qa1+ {[%clk
0:00:37.5]} 28. Kh2 {[%clk 0:00:59.3]} 28... b3 {[%clk 0:00:37.9]} 29. Rc7
{[%clk 0:00:44.2]} 29... b2 {[%clk 0:00:29.8]} 0-1

[Event "Early-Titled-Tuesday-Blitz-May-07-2024"]
[Site "Chess.com"]
[Date "2024.05.07"]
[Round "4"]
[White "platy3"]
[Black "IriBu"]
[Result "1-0"]
[WhiteElo "2870"]
[BlackElo "2587"]
[TimeControl "180+1"]
[EndTime "8:41:37 PDT"]
[Termination "platy3 won by resignation"]

1. c4 {[%clk 0:02:54.9]} 1... Nf6 {[%clk 0:02:58.5]} 2. g3 {[%clk 0:02:54.2]}
2... g6 {[%clk 0:02:58.6]} 3. b3 {[%clk 0:02:53.4]} 3... Bg7 {[%clk 0:02:58.9]}
4. Bb2 {[%clk 0:02:54.2]} 4... O-O {[%clk 0:02:59.3]} 5. Bg2 {[%clk 0:02:54.8]}
5... d6 {[%clk 0:02:59.2]} 6. Nf3 {[%clk 0:02:55.2]} 6... e5 {[%clk 0:02:58.1]}
7. O-O {[%clk 0:02:53.8]} 7... Nc6 {[%clk 0:02:57.1]} 8. Nc3 {[%clk 0:02:53.3]}
8... Bg4 {[%clk 0:02:53.6]} 9. d3 {[%clk 0:02:53.1]} 9... Qd7 {[%clk 0:02:51.2]}
10. a3 {[%clk 0:02:52.9]} 10... a5 {[%clk 0:02:50.9]} 11. Nd2 {[%clk 0:02:51.7]}
11... Bh3 {[%clk 0:02:50]} 12. e3 {[%clk 0:02:49.2]} 12... Ne8 {[%clk
0:02:41.4]} 13. Nd5 {[%clk 0:02:48.1]} 13... Bxg2 {[%clk 0:02:40.1]} 14. Kxg2
{[%clk 0:02:49]} 14... Ne7 {[%clk 0:02:38.4]} 15. Rc1 {[%clk 0:02:44.5]} 15...
Rd8 {[%clk 0:02:26.6]} 16. b4 {[%clk 0:02:36.2]} 16... axb4 {[%clk 0:02:25.5]}
17. axb4 {[%clk 0:02:37.1]} 17... c6 {[%clk 0:02:25.5]} 18. Nxe7+ {[%clk
0:02:34.6]} 18... Qxe7 {[%clk 0:02:26.4]} 19. b5 {[%clk 0:02:28.6]} 19... Ra8
{[%clk 0:02:25.2]} 20. Qb3 {[%clk 0:02:25.4]} 20... Nc7 {[%clk 0:02:18]} 21. Ra1
{[%clk 0:02:23]} 21... Ne6 {[%clk 0:02:16.7]} 22. Ba3 {[%clk 0:02:17.2]} 22...
Qd7 {[%clk 0:02:10.4]} 23. Ne4 {[%clk 0:02:16.7]} 23... Rxa3 {[%clk 0:01:46.9]}
24. Qxa3 {[%clk 0:02:13.8]} 24... Rd8 {[%clk 0:01:42.1]} 25. bxc6 {[%clk
0:02:12.5]} 25... bxc6 {[%clk 0:01:38.3]} 26. Qa7 {[%clk 0:02:11.1]} 26... Qe8
{[%clk 0:01:27.6]} 27. c5 {[%clk 0:02:02.7]} 27... dxc5 {[%clk 0:01:23.1]} 28.
Nxc5 {[%clk 0:02:02.1]} 28... Nxc5 {[%clk 0:01:16.9]} 29. Qxc5 {[%clk
0:01:59.8]} 29... Rxd3 {[%clk 0:01:16.1]} 30. Rfc1 {[%clk 0:01:58.4]} 30... h5
{[%clk 0:00:53.7]} 31. Qxc6 {[%clk 0:01:56.9]} 31... Qe7 {[%clk 0:00:47.9]} 32.
Qc7 {[%clk 0:01:49.8]} 32... Rd7 {[%clk 0:00:46.3]} 33. Qc5 {[%clk 0:01:47]}
33... Qe6 {[%clk 0:00:44.9]} 34. Qc6 {[%clk 0:01:44.4]} 34... Rd6 {[%clk
0:00:40.5]} 35. Qc8+ {[%clk 0:01:40.9]} 35... Kh7 {[%clk 0:00:40.5]} 36. Qxe6
{[%clk 0:01:40.7]} 36... Rxe6 {[%clk 0:00:41.3]} 37. Ra7 {[%clk 0:01:40.8]}
37... Rf6 {[%clk 0:00:39.9]} 38. Rcc7 {[%clk 0:01:40.5]} 38... Kg8 {[%clk
0:00:40.2]} 39. h3 {[%clk 0:01:39.6]} 39... Bf8 {[%clk 0:00:36.7]} 40. g4 {[%clk
0:01:30.2]} 40... hxg4 {[%clk 0:00:35.8]} 41. hxg4 {[%clk 0:01:31.1]} 41... g5
{[%clk 0:00:29.4]} 42. Kf1 {[%clk 0:01:25]} 42... Kg7 {[%clk 0:00:19.2]} 43. Ke2
{[%clk 0:01:23.7]} 43... Kg8 {[%clk 0:00:18.2]} 44. Ra5 {[%clk 0:01:17.7]} 44...
Bd6 {[%clk 0:00:17.1]} 45. Rc6 {[%clk 0:01:17.3]} 45... Kg7 {[%clk 0:00:17.1]}
46. Raa6 {[%clk 0:01:17.1]} 46... Be7 {[%clk 0:00:17.1]} 47. Rxf6 {[%clk
0:01:17.7]} 47... Bxf6 {[%clk 0:00:18]} 48. Kf3 {[%clk 0:01:18.4]} 1-0

[Event "Early-Titled-Tuesday-Blitz-May-07-2024"]
[Site "Chess.com"]
[Date "2024.05.07"]
[Round "4"]
[White "CrushingKings"]
[Black "dianamirza"]
[Result "1-0"]
[WhiteElo "2628"]
[BlackElo "1924"]
[TimeControl "180+1"]
[EndTime "8:41:37 PDT"]
[Termination "CrushingKings won by resignation"]

1. Nf3 {[%clk 0:03:00.9]} 1... d5 {[%clk 0:02:53.6]} 2. g3 {[%clk 0:03:00.7]}
2... Bg4 {[%clk 0:02:53.4]} 3. Bg2 {[%clk 0:02:59.1]} 3... Bxf3 {[%clk
0:02:54.3]} 4. Bxf3 {[%clk 0:02:58.7]} 4... e5 {[%clk 0:02:51.7]} 5. e4 {[%clk
0:02:55.9]} 5... d4 {[%clk 0:02:51.4]} 6. O-O {[%clk 0:02:52.6]} 6... Nf6 {[%clk
0:02:52.1]} 7. Bg2 {[%clk 0:02:52.6]} 7... Bd6 {[%clk 0:02:52.7]} 8. c3 {[%clk
0:02:52.1]} 8... O-O {[%clk 0:02:52.5]} 9. cxd4 {[%clk 0:02:51.6]} 9... exd4
{[%clk 0:02:51.4]} 10. f4 {[%clk 0:02:51.8]} 10... d3 {[%clk 0:02:44.8]} 11. e5
{[%clk 0:02:45.8]} 11... Bc5+ {[%clk 0:02:45]} 12. Kh1 {[%clk 0:02:45.2]} 12...
Nd5 {[%clk 0:02:45.4]} 13. Qb3 {[%clk 0:02:37.9]} 13... c6 {[%clk 0:02:33.7]}
14. Qxb7 {[%clk 0:02:18.9]} 14... Nb4 {[%clk 0:02:15.2]} 15. Nc3 {[%clk
0:01:46.2]} 15... Nd7 {[%clk 0:01:49.5]} 16. Bxc6 {[%clk 0:01:37.7]} 16... Nxc6
{[%clk 0:01:49.6]} 17. Qxc6 {[%clk 0:01:37.7]} 17... Rc8 {[%clk 0:01:47]} 18.
Qd5 {[%clk 0:01:37]} 18... Qe7 {[%clk 0:01:42.1]} 19. b3 {[%clk 0:01:11.1]}
19... Rfd8 {[%clk 0:01:37.6]} 20. Bb2 {[%clk 0:01:11.3]} 20... Nb6 {[%clk
0:01:31.8]} 21. Qf3 {[%clk 0:01:09.6]} 21... Bd4 {[%clk 0:01:22.2]} 22. Rae1
{[%clk 0:01:02.6]} 22... a5 {[%clk 0:01:18.4]} 23. Qe4 {[%clk 0:00:53.4]} 23...
Qc5 {[%clk 0:01:00.3]} 24. e6 {[%clk 0:00:42.8]} 24... fxe6 {[%clk 0:00:54.7]}
25. Qxe6+ {[%clk 0:00:42.7]} 25... Kh8 {[%clk 0:00:55.6]} 26. Ne4 {[%clk
0:00:42.8]} 26... Qc2 {[%clk 0:00:46.3]} 27. Bxd4 {[%clk 0:00:40.8]} 27... Rxd4
{[%clk 0:00:47.2]} 28. Ng5 {[%clk 0:00:33.1]} 1-0

[Event "Early-Titled-Tuesday-Blitz-May-07-2024"]
[Site "Chess.com"]
[Date "2024.05.07"]
[Round "4"]
[White "willyam13"]
[Black "Aminazinas"]
[Result "1-0"]
[WhiteElo "2446"]
[BlackElo "2640"]
[TimeControl "180+1"]
[EndTime "8:41:38 PDT"]
[Termination "willyam13 won by checkmate"]

1. e4 {[%clk 0:02:34.2]} 1... e5 {[%clk 0:02:59.1]} 2. Nf3 {[%clk 0:02:33.4]}
2... Nc6 {[%clk 0:02:58.7]} 3. Bb5 {[%clk 0:02:32.3]} 3... a6 {[%clk 0:02:58.4]}
4. Ba4 {[%clk 0:02:32.7]} 4... Nf6 {[%clk 0:02:58.3]} 5. O-O {[%clk 0:02:33]}
5... Be7 {[%clk 0:02:58.2]} 6. Re1 {[%clk 0:02:33.3]} 6... b5 {[%clk 0:02:58.3]}
7. Bb3 {[%clk 0:02:34]} 7... O-O {[%clk 0:02:58.9]} 8. h3 {[%clk 0:02:33.7]}
8... Bb7 {[%clk 0:02:57.5]} 9. d3 {[%clk 0:02:30.5]} 9... d6 {[%clk 0:02:57.1]}
10. a3 {[%clk 0:02:27.8]} 10... Na5 {[%clk 0:02:57]} 11. Ba2 {[%clk 0:02:27.8]}
11... c5 {[%clk 0:02:57.3]} 12. Nc3 {[%clk 0:02:27.7]} 12... Rc8 {[%clk
0:02:55.7]} 13. Bg5 {[%clk 0:02:27.6]} 13... b4 {[%clk 0:02:55.1]} 14. Bxf6
{[%clk 0:02:21.9]} 14... Bxf6 {[%clk 0:02:51.9]} 15. axb4 {[%clk 0:02:07.3]}
15... cxb4 {[%clk 0:02:50.6]} 16. Nd5 {[%clk 0:02:07.2]} 16... b3 {[%clk
0:02:38.7]} 17. Nxf6+ {[%clk 0:01:36.1]} 17... Qxf6 {[%clk 0:02:39.6]} 18. Bxb3
{[%clk 0:01:36.6]} 18... Nxb3 {[%clk 0:02:39.3]} 19. cxb3 {[%clk 0:01:37.5]}
19... Qe7 {[%clk 0:02:33.1]} 20. Nd2 {[%clk 0:01:34.8]} 20... f5 {[%clk
0:02:31.4]} 21. Nc4 {[%clk 0:01:29.1]} 21... Rcd8 {[%clk 0:02:18.2]} 22. Qe2
{[%clk 0:01:14.4]} 22... Qh4 {[%clk 0:02:13.1]} 23. f3 {[%clk 0:01:06.1]} 23...
f4 {[%clk 0:01:54.3]} 24. Red1 {[%clk 0:00:54.7]} 24... Qe7 {[%clk 0:01:50.2]}
25. Na5 {[%clk 0:00:19.8]} 25... Ba8 {[%clk 0:01:50.1]} 26. d4 {[%clk
0:00:16.9]} 26... Rb8 {[%clk 0:01:46]} 27. d5 {[%clk 0:00:12.3]} 27... Qa7+
{[%clk 0:01:43.7]} 28. Qf2 {[%clk 0:00:11.8]} 28... Qc7 {[%clk 0:01:42]} 29.
Rdc1 {[%clk 0:00:10.2]} 29... Qf7 {[%clk 0:01:36.2]} 30. Rc3 {[%clk 0:00:10.4]}
30... Rb5 {[%clk 0:01:32.7]} 31. Nc4 {[%clk 0:00:10.4]} 31... Qe7 {[%clk
0:01:25.7]} 32. Rxa6 {[%clk 0:00:10.9]} 32... Rd8 {[%clk 0:01:25.6]} 33. Nxd6
{[%clk 0:00:10.9]} 33... Rxd6 {[%clk 0:01:24.6]} 34. Rc8+ {[%clk 0:00:09.3]}
34... Rd8 {[%clk 0:01:24.4]} 35. Raxa8 {[%clk 0:00:08.6]} 35... Rxc8 {[%clk
0:01:25]} 36. Rxc8+ {[%clk 0:00:09.5]} 36... Kf7 {[%clk 0:01:25.6]} 37. Qc2
{[%clk 0:00:08]} 37... Qa7+ {[%clk 0:01:22.6]} 38. Kh2 {[%clk 0:00:07.6]} 38...
Rb7 {[%clk 0:01:22.7]} 39. d6 {[%clk 0:00:07.5]} 39... Ke6 {[%clk 0:01:22]} 40.
Qc4+ {[%clk 0:00:06.5]} 40... Kxd6 {[%clk 0:01:22]} 41. Qc6+ {[%clk 0:00:04.5]}
41... Ke7 {[%clk 0:01:21.5]} 42. Re8+ {[%clk 0:00:04.8]} 42... Kf7 {[%clk
0:01:22]} 43. Qe6# {[%clk 0:00:05.4]} 1-0

[Event "Early-Titled-Tuesday-Blitz-May-07-2024"]
[Site "Chess.com"]
[Date "2024.05.07"]
[Round "4"]
[White "ViralduS"]
[Black "TheoSlade"]
[Result "1/2-1/2"]
[WhiteElo "2649"]
[BlackElo "2483"]
[TimeControl "180+1"]
[EndTime "8:41:41 PDT"]
[Termination "Game drawn by repetition"]

1. e4 {[%clk 0:03:00.9]} 1... e5 {[%clk 0:03:00]} 2. Nf3 {[%clk 0:02:59.4]} 2...
Nc6 {[%clk 0:03:00.5]} 3. Bb5 {[%clk 0:02:58.6]} 3... g6 {[%clk 0:03:00.9]} 4.
O-O {[%clk 0:02:54.7]} 4... Bg7 {[%clk 0:03:00]} 5. c3 {[%clk 0:02:53.2]} 5...
Nge7 {[%clk 0:03:00]} 6. d4 {[%clk 0:02:51.9]} 6... exd4 {[%clk 0:02:58.9]} 7.
cxd4 {[%clk 0:02:48.8]} 7... a6 {[%clk 0:02:58.9]} 8. Ba4 {[%clk 0:02:28.6]}
8... b5 {[%clk 0:02:58.8]} 9. Bb3 {[%clk 0:02:24]} 9... d6 {[%clk 0:02:58.6]}
10. Nc3 {[%clk 0:02:12.7]} 10... O-O {[%clk 0:02:50.2]} 11. h3 {[%clk
0:01:57.8]} 11... Na5 {[%clk 0:02:50.7]} 12. Bc2 {[%clk 0:01:53.5]} 12... c5
{[%clk 0:02:51.3]} 13. Bf4 {[%clk 0:01:35]} 13... cxd4 {[%clk 0:02:39.2]} 14.
Nxd4 {[%clk 0:01:31.9]} 14... Nc4 {[%clk 0:02:38.6]} 15. b3 {[%clk 0:01:04]}
15... Ne5 {[%clk 0:02:39]} 16. Rc1 {[%clk 0:00:56.5]} 16... Bb7 {[%clk
0:02:38.8]} 17. Bb1 {[%clk 0:00:53.6]} 17... Rc8 {[%clk 0:02:36.7]} 18. Re1
{[%clk 0:00:52.9]} 18... Qb6 {[%clk 0:02:36.3]} 19. Be3 {[%clk 0:00:48.5]} 19...
Qa5 {[%clk 0:02:34.9]} 20. Qd2 {[%clk 0:00:46.4]} 20... Rc7 {[%clk 0:02:15.6]}
21. Nd5 {[%clk 0:00:31.8]} 21... Qxd2 {[%clk 0:02:14.7]} 22. Nxe7+ {[%clk
0:00:30.5]} 22... Rxe7 {[%clk 0:02:15.6]} 23. Bxd2 {[%clk 0:00:30.8]} 23... Nd3
{[%clk 0:01:57.6]} 24. Nc6 {[%clk 0:00:12.1]} 24... Bxc6 {[%clk 0:01:53.6]} 25.
Bxd3 {[%clk 0:00:12.7]} 25... Bb7 {[%clk 0:01:50]} 26. Bb4 {[%clk 0:00:12.9]}
26... Rfe8 {[%clk 0:01:41.8]} 27. Bxd6 {[%clk 0:00:12]} 27... Re6 {[%clk
0:01:42.5]} 28. Bg3 {[%clk 0:00:06.9]} 28... f5 {[%clk 0:01:32.1]} 29. f3 {[%clk
0:00:03.3]} 29... fxe4 {[%clk 0:01:31.2]} 30. fxe4 {[%clk 0:00:03.5]} 30... Bxe4
{[%clk 0:01:31.7]} 31. Bxe4 {[%clk 0:00:03.5]} 31... Rxe4 {[%clk 0:01:32.6]} 32.
Rxe4 {[%clk 0:00:04.1]} 32... Rxe4 {[%clk 0:01:33.5]} 33. Rc8+ {[%clk
0:00:04.5]} 33... Kf7 {[%clk 0:01:34]} 34. Rc7+ {[%clk 0:00:04.8]} 34... Re7
{[%clk 0:01:32.4]} 35. Rc6 {[%clk 0:00:04.6]} 35... Re6 {[%clk 0:01:12.9]} 36.
Rc7+ {[%clk 0:00:03.4]} 36... Re7 {[%clk 0:01:11.2]} 37. Rc8 {[%clk 0:00:03.9]}
37... Re2 {[%clk 0:01:06.3]} 38. Rc7+ {[%clk 0:00:04]} 38... Re7 {[%clk
0:01:02.3]} 1/2-1/2

[Event "Early-Titled-Tuesday-Blitz-May-07-2024"]
[Site "Chess.com"]
[Date "2024.05.07"]
[Round "4"]
[White "NowInChess"]
[Black "kanzaww"]
[Result "0-1"]
[WhiteElo "2242"]
[BlackElo "2520"]
[TimeControl "180+1"]
[EndTime "8:41:42 PDT"]
[Termination "kanzaww won by checkmate"]

1. e4 {[%clk 0:03:00.9]} 1... e5 {[%clk 0:02:59.2]} 2. Nf3 {[%clk 0:03:00.3]}
2... Nc6 {[%clk 0:02:59.4]} 3. d4 {[%clk 0:03:00.4]} 3... exd4 {[%clk
0:02:59.1]} 4. Bc4 {[%clk 0:03:00.9]} 4... Bc5 {[%clk 0:02:40]} 5. c3 {[%clk
0:02:57.8]} 5... Nf6 {[%clk 0:02:28.8]} 6. e5 {[%clk 0:02:56.7]} 6... d5 {[%clk
0:02:28.8]} 7. Bb5 {[%clk 0:02:57.1]} 7... Ne4 {[%clk 0:02:26.8]} 8. cxd4 {[%clk
0:02:56.9]} 8... Bb6 {[%clk 0:02:27.1]} 9. O-O {[%clk 0:02:48.6]} 9... O-O
{[%clk 0:02:26.5]} 10. Nc3 {[%clk 0:02:44.1]} 10... Bg4 {[%clk 0:02:23.2]} 11.
Bxc6 {[%clk 0:02:41.1]} 11... bxc6 {[%clk 0:02:21.5]} 12. Be3 {[%clk 0:02:35.8]}
12... f6 {[%clk 0:02:18.3]} 13. Qa4 {[%clk 0:02:21.3]} 13... Bxf3 {[%clk
0:02:13.6]} 14. gxf3 {[%clk 0:02:22.2]} 14... Nxc3 {[%clk 0:02:13.5]} 15. bxc3
{[%clk 0:02:22.7]} 15... fxe5 {[%clk 0:02:13.4]} 16. Qxc6 {[%clk 0:02:12.7]}
16... Rxf3 {[%clk 0:01:57.1]} 17. Kg2 {[%clk 0:01:46.9]} 17... Rf6 {[%clk
0:01:46]} 18. Qb5 {[%clk 0:01:38.1]} 18... exd4 {[%clk 0:01:45]} 19. cxd4 {[%clk
0:01:28.6]} 19... Qd6 {[%clk 0:01:38.8]} 20. Kh1 {[%clk 0:01:25]} 20... Rf3
{[%clk 0:01:35.5]} 21. Kg2 {[%clk 0:01:16.3]} 21... Raf8 {[%clk 0:01:33.4]} 22.
Rg1 {[%clk 0:01:05.1]} 22... Qg6+ {[%clk 0:01:19.8]} 23. Kh1 {[%clk 0:01:04.4]}
23... Qe4 {[%clk 0:01:19.5]} 24. Rg2 {[%clk 0:00:56.7]} 24... Bxd4 {[%clk
0:01:12.2]} 25. Bxd4 {[%clk 0:00:31.9]} 25... Qxd4 {[%clk 0:01:13.1]} 26. Rag1
{[%clk 0:00:29.1]} 26... R3f7 {[%clk 0:01:12.7]} 27. Qe2 {[%clk 0:00:18.4]}
27... Qe4 {[%clk 0:01:08.2]} 28. Qh5 {[%clk 0:00:04]} 28... Rxf2 {[%clk
0:01:00.2]} 29. h3 {[%clk 0:00:04.1]} 29... Rxg2 {[%clk 0:00:59.4]} 30. Rxg2
{[%clk 0:00:04.5]} 30... Rf1+ {[%clk 0:00:57.3]} 31. Kh2 {[%clk 0:00:04.7]}
31... Qf4+ {[%clk 0:00:56.4]} 32. Rg3 {[%clk 0:00:05]} 32... Rf2+ {[%clk
0:00:55.2]} 33. Kh1 {[%clk 0:00:03]} 33... Qe4+ {[%clk 0:00:55.1]} 34. Kg1
{[%clk 0:00:01.6]} 34... Qe1# {[%clk 0:00:55]} 0-1

[Event "Early-Titled-Tuesday-Blitz-May-07-2024"]
[Site "Chess.com"]
[Date "2024.05.07"]
[Round "4"]
[White "SchmakAttack"]
[Black "m_ezat"]
[Result "1-0"]
[WhiteElo "2777"]
[BlackElo "2557"]
[TimeControl "180+1"]
[EndTime "8:41:43 PDT"]
[Termination "SchmakAttack won by resignation"]

1. d4 {[%clk 0:03:00.9]} 1... Nf6 {[%clk 0:02:55]} 2. c4 {[%clk 0:03:00.4]} 2...
e6 {[%clk 0:02:53.4]} 3. Nf3 {[%clk 0:03:00]} 3... d5 {[%clk 0:02:42.7]} 4. Nc3
{[%clk 0:02:59.2]} 4... Be7 {[%clk 0:02:40.7]} 5. Bf4 {[%clk 0:02:57.9]} 5...
O-O {[%clk 0:02:37.9]} 6. Rc1 {[%clk 0:02:57.8]} 6... c5 {[%clk 0:02:14.3]} 7.
dxc5 {[%clk 0:02:58.7]} 7... Bxc5 {[%clk 0:02:12.8]} 8. cxd5 {[%clk 0:02:50.9]}
8... exd5 {[%clk 0:02:12.2]} 9. e3 {[%clk 0:02:51.1]} 9... Be6 {[%clk
0:02:10.7]} 10. a3 {[%clk 0:02:36.6]} 10... Nc6 {[%clk 0:02:04.1]} 11. Bd3
{[%clk 0:02:30.1]} 11... d4 {[%clk 0:01:52.7]} 12. Nb5 {[%clk 0:02:28]} 12...
Bb6 {[%clk 0:01:32.4]} 13. Nbxd4 {[%clk 0:02:20.6]} 13... Nxd4 {[%clk
0:01:28.9]} 14. Nxd4 {[%clk 0:02:20]} 14... Bxd4 {[%clk 0:01:27]} 15. exd4
{[%clk 0:02:20.9]} 15... Bg4 {[%clk 0:01:22.1]} 16. Qd2 {[%clk 0:02:20.7]} 16...
Re8+ {[%clk 0:01:20.9]} 17. Be3 {[%clk 0:02:21.1]} 17... Ne4 {[%clk 0:01:17.1]}
18. Bxe4 {[%clk 0:01:50.9]} 18... Rxe4 {[%clk 0:01:16.1]} 19. f3 {[%clk
0:01:51.3]} 19... Re6 {[%clk 0:00:49.4]} 20. fxg4 {[%clk 0:01:24.6]} 20... Qh4+
{[%clk 0:00:25.8]} 21. g3 {[%clk 0:01:15.6]} 21... Qh3 {[%clk 0:00:25.3]} 22.
Rc3 {[%clk 0:01:00.1]} 22... Rae8 {[%clk 0:00:23.4]} 23. Kd1 {[%clk 0:00:57.2]}
23... Qxg4+ {[%clk 0:00:22]} 24. Kc1 {[%clk 0:00:57.5]} 24... b5 {[%clk
0:00:19.8]} 25. d5 {[%clk 0:00:51.5]} 25... Rd6 {[%clk 0:00:13.8]} 26. Bf4
{[%clk 0:00:46.6]} 26... Re2 {[%clk 0:00:10.1]} 27. Qxe2 {[%clk 0:00:42.8]} 1-0